fUST/lending_fUST_20250917
["ID","MTS","AMOUNT","RATE_DAILY","PERIOD"]
[385809008,1758054649494,-480.0,0.00021917,2]
[385809009,1758054649503,-566.32,0.00021917,2]
[385809010,1758054649512,-480.0,0.00021917,2]
[385809011,1758054649522,-480.0,0.00021917,2]
[385809012,1758054649531,-986.48,0.00021917,2]
[385809013,1758054649540,-480.0,0.00021917,2]
[385809014,1758054649549,-480.0,0.00021917,2]
[385809015,1758054649558,-480.0,0.00021917,2]
[385809016,1758054649568,-480.0,0.00021917,2]
[385809017,1758054649577,-480.0,0.00021917,2]
[385809018,1758054649586,-480.0,0.00021917,2]
[385809019,1758054649596,-2793.65,0.00021917,2]
[385809020,1758054649605,-1289.53,0.00021917,2]
[385809021,1758054649614,-500.0,0.00021917,2]
[385809022,1758054649623,-500.0,0.00021917,2]
[385809023,1758054649632,-480.0,0.00021917,2]
[385809024,1758054649641,-500.0,0.00021917,2]
[385809025,1758054649650,-500.0,0.00021917,2]
[385809026,1758054649659,-500.0,0.00021917,2]
[385809027,1758054649668,-500.0,0.00021917,2]
[385809028,1758054649677,-480.0,0.00021917,2]
[385809029,1758054649686,-500.0,0.00021917,2]
[385809030,1758054649695,-215.81569653,0.00021917,2]
[385809031,1758054649705,-480.0,0.00021917,2]
[385809032,1758054649714,-480.0,0.00021917,2]
[385809033,1758054649723,-480.0,0.00021917,2]
[385809034,1758054649733,-480.0,0.00021917,2]
[385809035,1758054649742,-480.0,0.00021917,2]
[385809036,1758054649751,-480.0,0.00021917,2]
[385809037,1758054649761,-500.0,0.00021917,2]
[385809038,1758054649777,-500.0,0.00021917,2]
[385809039,1758054649795,-480.0,0.00021917,2]
[385809040,1758054649803,-500.0,0.00021917,2]
[385809041,1758054649812,-500.0,0.00021917,2]
[385809042,1758054649821,-500.0,0.00021917,2]
[385809043,1758054649830,-480.0,0.00021917,2]
[385809044,1758054649839,-480.0,0.00021917,2]
[385809045,1758054649848,-500.0,0.00021917,2]
[385809046,1758054649858,-151.0,0.00021917,2]
[385809047,1758054649867,-500.0,0.00021917,2]
[385809048,1758054649876,-500.0,0.00021917,2]
[385809049,1758054649885,-500.0,0.00021917,2]
[385809050,1758054649894,-480.0,0.00021917,2]
[385809051,1758054649903,-232.52025035,0.00021917,2]
[385809052,1758054649912,-500.0,0.00021917,2]
[385809053,1758054649921,-480.0,0.00021917,2]
[385809054,1758054649930,-480.0,0.00021917,2]
[385809055,1758054649940,-500.0,0.00021917,2]
[385809056,1758054649949,-500.0,0.00021917,2]
[385809057,1758054649958,-480.0,0.00021917,2]
[385809058,1758054649967,-428.81891868,0.00021917,2]
[385809059,1758054649976,-300.0,0.00021917,2]
[385809060,1758054649985,-480.0,0.00021917,2]
[385809061,1758054649994,-480.0,0.00021917,2]
[385809062,1758054650003,-480.0,0.00021917,2]
[385809063,1758054650012,-1408.28,0.00021917,2]
[385809064,1758054650021,-480.0,0.00021917,2]
[385809065,1758054650030,-480.0,0.00021917,2]
[385809066,1758054650040,-496.04105885,0.00021917,2]
[385809067,1758054650049,-151.0,0.00021917,2]
[385809068,1758054650058,-500.0,0.00021917,2]
[385809069,1758054650067,-480.0,0.00021917,2]
[385809070,1758054650076,-151.0,0.00021917,2]
[385809071,1758054650085,-580.08976227,0.00021917,2]
[385809072,1758054650094,-480.0,0.00021917,2]
[385809073,1758054650103,-194.44182224,0.00021917,2]
[385809074,1758054650112,-480.0,0.00021917,2]
[385809075,1758054650121,-480.0,0.00021917,2]
[385809076,1758054650130,-480.0,0.00021917,2]
[385809077,1758054650139,-480.0,0.00021917,2]
[385809078,1758054650148,-480.0,0.00021917,2]
[385809079,1758054650157,-480.0,0.00021917,2]
[385809080,1758054650166,-480.0,0.00021917,2]
[385809081,1758054650175,-499.13,0.00021917,2]
[385809082,1758054650184,-480.0,0.00021917,2]
[385809083,1758054650193,-480.0,0.00021917,2]
[385809084,1758054650201,-480.0,0.00021917,2]
[385809085,1758054650210,-480.0,0.00021917,2]
[385809086,1758054650219,-480.0,0.00021917,2]
[385809087,1758054650228,-480.0,0.00021917,2]
[385809088,1758054650237,-580.45,0.00021917,2]
[385809089,1758054650246,-613.47,0.00021917,2]
[385809090,1758054650255,-480.0,0.00021917,2]
[385809091,1758054650359,-2618.31,0.00021917,2]
[385809092,1758054650369,-480.0,0.00021917,2]
[385809093,1758054650378,-480.0,0.00021917,2]
[385809094,1758054650387,-480.0,0.00021917,2]
[385809095,1758054650397,-480.0,0.00021917,2]
[385809096,1758054650406,-5943.35,0.00021917,2]
[385809097,1758054650415,-480.0,0.00021917,2]
[385809098,1758054650425,-480.0,0.00021917,2]
[385809099,1758054650434,-480.0,0.00021917,2]
[385809100,1758054650443,-480.0,0.00021917,2]
[385809101,1758054650452,-480.0,0.00021917,2]
[385809102,1758054650462,-480.0,0.00021917,2]
[385809103,1758054650471,-480.0,0.00021917,2]
[385809104,1758054650481,-480.0,0.00021917,2]
[385809105,1758054650490,-480.0,0.00021917,2]
[385809106,1758054650500,-500.0,0.00021917,2]
[385809107,1758054650509,-500.0,0.00021917,2]
[385809108,1758054650519,-366.68194012,0.00021917,2]
[385809109,1758054650529,-500.0,0.00021917,2]
[385809110,1758054650538,-480.0,0.00021917,2]
[385809111,1758054650547,-485.37655359,0.00021917,2]
[385809112,1758054650556,-500.0,0.00021917,2]
[385809113,1758054650566,-500.0,0.00021917,2]
[385809114,1758054650575,-500.0,0.00021917,2]
[385809115,1758054650584,-480.0,0.00021917,2]
[385809116,1758054650594,-500.0,0.00021917,2]
[385809117,1758054650603,-500.0,0.00021917,2]
[385809118,1758054650612,-480.0,0.00021917,2]
[385809119,1758054650621,-500.0,0.00021917,2]
[385809120,1758054650631,-500.0,0.00021917,2]
[385809121,1758054650642,-1387.43,0.00021917,2]
[385809122,1758054650652,-500.0,0.00021917,2]
[385809123,1758054650661,-500.0,0.00021917,2]
[385809124,1758054650670,-500.0,0.00021917,2]
[385809125,1758054650681,-500.0,0.00021917,2]
[385809126,1758054650692,-500.0,0.00021917,2]
[385809127,1758054650701,-399.06211805,0.00021917,2]
[385809128,1758054650711,-480.0,0.00021917,2]
[385809129,1758054650722,-480.0,0.00021917,2]
[385809130,1758054650732,-293.83257503,0.00021917,2]
[385809131,1758054650741,-521.69654984,0.00021917,2]
[385809132,1758054650750,-562.26,0.00021917,2]
[385809133,1758054650759,-2183.0,0.00021917,2]
[385809134,1758054650768,-1255.14,0.00021917,2]
[385809135,1758054650779,-487.95274995,0.00021917,2]
[385809136,1758054650788,-595.11,0.00021917,2]
[385809137,1758054650797,-480.0,0.00021917,2]
[385809138,1758054650806,-485.67039349,0.00021917,2]
[385809139,1758054650816,-11531.82,0.00021917,2]
[385809140,1758054650824,-3602.96,0.00021917,2]
[385809141,1758054650833,-480.0,0.00021917,2]
[385809142,1758054650842,-480.0,0.00021917,2]
[385809143,1758054650853,-480.0,0.00021917,2]
[385809144,1758054650863,-480.0,0.00021917,2]
[385809145,1758054650872,-480.0,0.00021917,2]
[385809146,1758054650881,-480.0,0.00021917,2]
[385809147,1758054650890,-480.0,0.00021917,2]
[385809148,1758054650900,-480.0,0.00021917,2]
[385809149,1758054650909,-480.0,0.00021917,2]
[385809150,1758054650919,-480.0,0.00021917,2]
[385809151,1758054650928,-480.0,0.00021917,2]
[385809152,1758054650937,-480.0,0.00021917,2]
[385809153,1758054650945,-480.0,0.00021917,2]
[385809154,1758054650954,-529.80097955,0.00021917,2]
[385809155,1758054650964,-480.0,0.00021917,2]
[385809156,1758054650974,-480.0,0.00021917,2]
[385809157,1758054650984,-480.0,0.00021917,2]
[385809158,1758054650993,-480.0,0.00021917,2]
[385809159,1758054651002,-977.0,0.0002192,2]
[385809160,1758054651012,-410.0,0.0002192,2]
[385809161,1758054651020,-412.92,0.0002192,2]
[385809162,1758054651030,-500.0,0.00021969,3]
[385809163,1758054651039,-825.12,0.00021969,3]
[385809164,1758054651048,-153.0,0.0002197,2]
[385809165,1758054651057,-153.0,0.0002197,2]
[385809166,1758054651067,-153.0,0.0002197,2]
[385809167,1758054651087,-153.0,0.0002197,2]
[385809168,1758054651107,-153.0,0.0002197,2]
[385809169,1758054651131,-153.0,0.0002197,2]
[385809170,1758054651151,-153.0,0.0002197,2]
[385809171,1758054651171,-153.0,0.0002197,2]
[385809172,1758054651193,-153.0,0.0002197,2]
[385809173,1758054651215,-153.0,0.0002197,2]
[385809174,1758054651238,-153.0,0.0002197,2]
[385809175,1758054651261,-153.0,0.0002197,2]
[385809176,1758054651285,-153.0,0.0002197,2]
[385809177,1758054651307,-331.49788073,0.00021973,2]
[385809178,1758054651332,-500.0,0.00021973,2]
[385809179,1758054651354,-500.0,0.00021973,2]
[385809180,1758054651379,-500.0,0.00021973,2]
[385809181,1758054651400,-500.0,0.00021973,2]
[385809182,1758054651410,-500.0,0.00021973,2]
[385809183,1758054651419,-500.0,0.00021973,2]
[385809184,1758054651428,-500.0,0.00021973,2]
[385809185,1758054651437,-500.0,0.00021973,2]
[385809186,1758054651446,-501.39610641,0.00021973,2]
[385809187,1758054651455,-451.07374914,0.00021973,2]
[385809188,1758054651465,-500.0,0.00021973,2]
[385809189,1758054651475,-500.0,0.00021973,2]
[385809190,1758054651484,-500.0,0.00021973,2]
[385809191,1758054651494,-502.04397861,0.00021973,2]
[385809192,1758054651503,-500.0,0.00021973,2]
[385809193,1758054651512,-505.09367569,0.00021973,2]
[385809194,1758054651521,-500.0,0.00021973,2]
[385809195,1758054651530,-470.26477109,0.00021973,2]
[385809196,1758054651540,-500.0,0.00021973,2]
[385809197,1758054651550,-500.0,0.00021973,2]
[385809198,1758054651559,-500.0,0.00021973,2]
[385809199,1758054651569,-500.0,0.00021973,2]
[385809200,1758054651579,-500.0,0.00021973,2]
[385809201,1758054651590,-536.49938663,0.00021973,2]
[385809202,1758054651600,-201.84366764,0.00021973,2]
[385809203,1758054651611,-500.0,0.00021973,2]
[385809204,1758054651621,-480.0,0.00021973,2]
[385809205,1758054651632,-500.0,0.00021973,2]
[385809206,1758054651642,-500.0,0.00021973,2]
[385809207,1758054651652,-153.0,0.00021975,2]
[385809208,1758054651662,-153.0,0.00021975,2]
[385809209,1758054651671,-153.0,0.00021975,2]
[385809210,1758054651681,-153.0,0.00021975,2]
[385809211,1758054651690,-153.0,0.00021975,2]
[385809212,1758054651698,-153.0,0.00021975,2]
[385809213,1758054651708,-153.0,0.00021975,2]
[385809214,1758054651717,-153.0,0.00021975,2]
[385809215,1758054651727,-153.0,0.00021975,2]
[385809216,1758054651736,-153.0,0.00021975,2]
[385809217,1758054651745,-153.0,0.00021975,2]
[385809218,1758054651754,-153.0,0.00021975,2]
[385809219,1758054651764,-153.0,0.00021975,2]
[385809220,1758054651778,-153.0,0.00021975,2]
[385809221,1758054651787,-153.0,0.00021975,2]
[385809222,1758054651796,-153.0,0.00021975,2]
[385809223,1758054651805,-153.0,0.00021975,2]
[385809224,1758054651815,-153.0,0.00021975,2]
[385809225,1758054651824,-153.0,0.00021975,2]
[385809226,1758054651833,-153.0,0.00021975,2]
[385809227,1758054651843,-153.0,0.00021975,2]
[385809228,1758054651852,-153.0,0.00021975,2]
[385809229,1758054651862,-153.0,0.00021975,2]
[385809230,1758054651872,-6072.74327973,0.0002199,2]
[385809231,1758054651881,-1000.0,0.00022,2]
[385809232,1758054651891,-1000.0,0.00022,2]
[385809233,1758054651901,-1203.02134962,0.00022052,2]
[385809234,1758054651910,-500.0,0.0002208,3]
[385809235,1758054651920,-825.12,0.0002208,3]
[385809236,1758054651931,-199.0,0.00022116,2]
[385809237,1758054651940,-202.50287876,0.00022172,3]
[385809238,1758054651949,-825.12,0.00022172,3]
[385809239,1758054651958,-500.0,0.00022173,2]
[385809240,1758054651970,-501.23191424,0.00022173,2]
[385809241,1758054651980,-500.0,0.00022173,2]
[385809242,1758054651990,-500.0,0.00022173,2]
[385809243,1758054652000,-500.0,0.00022173,2]
[385809244,1758054652010,-501.1659984,0.00022173,2]
[385809245,1758054652020,-500.0,0.00022173,2]
[385809246,1758054652029,-500.0,0.00022173,2]
[385809247,1758054652040,-500.0,0.00022173,2]
[385809248,1758054652049,-825.12,0.00022189,3]
[385809249,1758054652058,-825.12,0.00022189,3]
[385809250,1758054652067,-825.12,0.00022189,3]
[385809251,1758054652076,-825.12,0.00022189,3]
[385809252,1758054652086,-825.12,0.00022189,3]
[385809253,1758054652094,-500.0,0.0002219,2]
[385809254,1758054652104,-151.0,0.00022191,2]
[385809255,1758054652113,-157.0,0.00022191,2]
[385809256,1758054652122,-500.0,0.00022191,2]
[385809257,1758054652131,-291.21531737,0.00022191,2]
[385809258,1758054652140,-255.4601276,0.00022191,2]
[385809259,1758054652149,-163.30045024,0.00022191,2]
[385809260,1758054652159,-500.0,0.00022191,2]
[385809261,1758054652169,-163.0,0.00022191,2]
[385809262,1758054652178,-151.0,0.00022191,2]
[385809263,1758054652187,-163.0,0.00022191,2]
[385809264,1758054652197,-500.0,0.00022191,2]
[385809265,1758054652206,-151.0,0.00022191,2]
[385809266,1758054652214,-632.0121467,0.00022191,2]
[385809267,1758054652223,-151.0,0.00022191,2]
[385809268,1758054652232,-151.0,0.00022191,2]
[385809269,1758054652241,-163.0,0.00022191,2]
[385809270,1758054652250,-728.0,0.00022191,2]
[385809271,1758054652260,-299.90471142,0.00022191,2]
[385809272,1758054652270,-151.0,0.00022191,2]
[385809273,1758054652280,-646.86039137,0.00022191,2]
[385809274,1758054652289,-152.40736968,0.00022191,2]
[385809275,1758054652298,-151.0,0.00022191,2]
[385809276,1758054652307,-500.0,0.00022191,2]
[385809277,1758054652316,-151.0,0.00022191,2]
[385809278,1758054652325,-667.44224913,0.00022191,3]
[385809279,1758054652334,-480.0,0.00022191,3]
[385809280,1758054652343,-480.0,0.00022191,3]
[385809281,1758054652352,-480.0,0.00022191,3]
[385809282,1758054652361,-453.06233828,0.00022191,3]
[385809283,1758054652370,-480.0,0.00022191,3]
[385809284,1758054652379,-480.0,0.00022191,3]
[385809285,1758054652387,-480.0,0.00022191,3]
[385809286,1758054652396,-480.0,0.00022191,3]
[385809287,1758054652405,-480.0,0.00022191,3]
[385809288,1758054652416,-612.35,0.00022191,3]
[385809289,1758054652425,-259.55799421,0.00022191,3]
[385809290,1758054652434,-531.68698162,0.00022191,3]
[385809291,1758054652443,-480.0,0.00022191,3]
[385809292,1758054652453,-480.0,0.00022191,3]
[385809293,1758054652462,-480.0,0.00022191,3]
[385809294,1758054652470,-480.0,0.00022191,3]
[385809295,1758054652479,-480.0,0.00022191,3]
[385809296,1758054652489,-480.0,0.00022191,3]
[385809297,1758054652498,-480.0,0.00022191,3]
[385809298,1758054652507,-480.0,0.00022191,3]
[385809299,1758054652517,-480.0,0.00022191,3]
[385809300,1758054652526,-480.0,0.00022191,3]
[385809301,1758054652535,-480.0,0.00022191,3]
[385809302,1758054652544,-480.0,0.00022191,3]
[385809303,1758054652553,-480.0,0.00022191,3]
[385809304,1758054652562,-480.0,0.00022191,3]
[385809305,1758054652572,-480.0,0.00022191,3]
[385809306,1758054652581,-480.0,0.00022191,3]
[385809307,1758054652591,-480.0,0.00022191,3]
[385809308,1758054652600,-480.0,0.00022191,3]
[385809309,1758054652609,-480.0,0.00022191,3]
[385809310,1758054652618,-281.32815379,0.00022191,3]
[385809311,1758054652627,-561.99,0.00022191,3]
[385809312,1758054652637,-480.0,0.00022191,3]
[385809313,1758054652646,-480.0,0.00022191,3]
[385809314,1758054652655,-480.0,0.00022191,3]
[385809315,1758054652664,-480.0,0.00022191,3]
[385809316,1758054652673,-480.0,0.00022191,3]
[385809317,1758054652682,-552.26,0.00022191,3]
[385809318,1758054652691,-480.0,0.00022191,3]
[385809319,1758054652701,-480.0,0.00022191,3]
[385809320,1758054652710,-494.7063008,0.00022191,3]
[385809321,1758054652719,-480.0,0.00022191,3]
[385809322,1758054652818,-476.6180239,0.00022191,3]
[385809323,1758054652827,-480.91058364,0.00022191,3]
[385809324,1758054652837,-480.0,0.00022191,3]
[385809325,1758054652847,-480.0,0.00022191,3]
[385809326,1758054652856,-480.0,0.00022191,3]
[385809327,1758054652866,-482.64679946,0.00022191,3]
[385809328,1758054652875,-480.0,0.00022191,3]
[385809329,1758054652884,-480.0,0.00022191,3]
[385809330,1758054652892,-480.0,0.00022191,3]
[385809331,1758054652902,-480.0,0.00022191,3]
[385809332,1758054652911,-480.0,0.00022191,3]
[385809333,1758054652920,-480.0,0.00022191,3]
[385809334,1758054652929,-480.0,0.00022191,3]
[385809335,1758054652938,-480.0,0.00022191,3]
[385809336,1758054652948,-480.0,0.00022191,3]
[385809337,1758054652957,-480.0,0.00022191,3]
[385809338,1758054652966,-480.0,0.00022191,3]
[385809339,1758054652975,-480.0,0.00022191,3]
[385809340,1758054652984,-480.0,0.00022191,3]
[385809341,1758054652993,-480.0,0.00022191,3]
[385809342,1758054653002,-430.59243232,0.00022191,3]
[385809343,1758054653011,-480.0,0.00022191,3]
[385809344,1758054653021,-480.0,0.00022191,3]
[385809345,1758054653029,-480.0,0.00022191,3]
[385809346,1758054653039,-480.0,0.00022191,3]
[385809347,1758054653048,-262.08301416,0.00022191,3]
[385809348,1758054653057,-480.0,0.00022191,3]
[385809349,1758054653066,-480.0,0.00022191,3]
[385809350,1758054653075,-480.0,0.00022191,3]
[385809351,1758054653085,-480.0,0.00022191,3]
[385809352,1758054653094,-480.0,0.00022191,3]
[385809353,1758054653104,-480.0,0.00022191,3]
[385809354,1758054653113,-480.0,0.00022191,3]
[385809355,1758054653121,-480.0,0.00022191,3]
[385809356,1758054653130,-487.18048372,0.00022191,3]
[385809357,1758054653139,-376.62809651,0.00022191,3]
[385809358,1758054653161,-103.37190349,0.00022191,3]
[385809359,1758054653171,-480.0,0.00022191,3]
[385809360,1758054653180,-570.63,0.00022191,3]
[385809361,1758054653189,-480.0,0.00022191,3]
[385809362,1758054653198,-480.0,0.00022191,3]
[385809363,1758054653207,-480.0,0.00022191,3]
[385809364,1758054653216,-480.0,0.00022191,3]
[385809365,1758054653226,-480.0,0.00022191,3]
[385809366,1758054653235,-480.0,0.00022191,3]
[385809367,1758054653244,-552.74,0.00022191,3]
[385809368,1758054653253,-480.0,0.00022191,3]
[385809369,1758054653263,-42.71796825,0.00022191,3]
[385809370,1758054653274,-486.06203175,0.00022191,3]
[385809371,1758054653284,-480.0,0.00022191,3]
[385809372,1758054653294,-480.0,0.00022191,3]
[385809373,1758054653304,-480.0,0.00022191,3]
[385809374,1758054653314,-480.0,0.00022191,3]
[385809375,1758054653323,-480.0,0.00022191,3]
[385809376,1758054653332,-501.91297721,0.00022191,3]
[385809377,1758054653341,-216.0821441,0.00022191,3]
[385809378,1758054653352,-263.9178559,0.00022191,3]
[385809379,1758054653361,-283.65925695,0.00022191,3]
[385809380,1758054653371,-492.73,0.00022191,3]
[385809381,1758054653381,-480.0,0.00022191,3]
[385809382,1758054653389,-480.0,0.00022191,3]
[385809383,1758054653398,-480.0,0.00022191,3]
[385809384,1758054653407,-560.11,0.00022191,3]
[385809385,1758054653417,-480.0,0.00022191,3]
[385809386,1758054653427,-480.0,0.00022191,3]
[385809387,1758054653437,-480.0,0.00022191,3]
[385809388,1758054653446,-480.0,0.00022191,3]
[385809389,1758054653456,-480.0,0.00022191,3]
[385809390,1758054653465,-832.42,0.00022191,3]
[385809391,1758054653475,-480.0,0.00022191,3]
[385809392,1758054653487,-480.0,0.00022191,3]
[385809393,1758054653497,-270.99729478,0.00022191,3]
[385809394,1758054653508,-209.00270522,0.00022191,3]
[385809395,1758054653518,-329.66222592,0.00022191,3]
[385809396,1758054653529,-226.10777408,0.00022191,3]
[385809397,1758054653538,-39.80277701,0.00022191,3]
[385809403,1758054687532,952.38513395,0.000199,2]
[385809404,1758054687609,952.38513373,0.00021149,2]
[385809406,1758054823450,-9322.46550396,0.0002144,2]
[385809407,1758054823608,-10000.01,0.0002144,2]
[385809408,1758054823747,-10000.01,0.0002144,2]
[385809409,1758054832987,-10000.01,0.0002144,2]
[385809410,1758054833136,-10000.01,0.0002144,2]
[385809411,1758054833239,-10000.01,0.0002144,2]
[385809412,1758054834512,-10000.01,0.0002144,2]
[385809413,1758054834655,-10000.01,0.0002144,2]
[385809414,1758054834803,-10000.01,0.0002144,2]
[385809415,1758054843440,-300.0,0.00021439,2]
[385809416,1758054843478,-9400.01,0.0002144,2]
[385809417,1758054843560,-10000.01,0.0002144,2]
[385809418,1758054843680,-10000.01,0.0002144,2]
[385809419,1758054843811,-10000.01,0.0002144,2]
[385809420,1758054843971,-10000.01,0.0002144,2]
[385809421,1758054853028,-10000.01,0.0002144,2]
[385809422,1758054870473,1975.8290929,0.000199,2]
[385809423,1758054870634,1975.82909281,0.00021149,2]
[385809424,1758054903098,6048.35181429,0.0002015,2]
[385809425,1758054903122,10000.01,0.0002015,2]
[385809426,1758054903144,10000.01,0.0002015,2]
[385809427,1758054903166,3306.7063228,0.0002015,2]
[385809430,1758055053744,1844.10715356,0.000199,2]
[385809431,1758055054530,1844.10715328,0.00021149,2]
[385809432,1758055170807,191.53262498,0.00027532,30]
[385809433,1758055171326,159.61052082,0.00027861,30]
[385809434,1758055214380,377.0959632,0.00027451,30]
[385809435,1758055241208,1721.16667653,0.000199,2]
[385809436,1758055241304,1283.92269383,0.00021149,2]
[385809437,1758055241329,437.24398256,0.00021149,2]
[385809438,1758055312614,21174.10473664,0.00028,30]
[385809441,1758055367959,330.3,0.00028,30]
[385809442,1758055431693,1606.42223151,0.000199,2]
[385809443,1758055431774,1606.42223129,0.00021149,2]
[385809445,1758055622893,1496.59986984,0.000199,2]
[385809446,1758055622971,1496.59986958,0.00021149,2]
[385809459,1758055820118,1666.85362688,0.000199,2]
[385809460,1758055820195,1666.85362683,0.00021149,2]
[385809511,1758055832514,-2597.48345247,0.000214,2]
[385809513,1758055832524,-1276.39449604,0.0002144,2]
[385809515,1758055832533,-300.0,0.00021503,2]
[385809517,1758055832542,-300.0,0.00021503,2]
[385809519,1758055832551,-300.0,0.00021503,2]
[385809521,1758055832560,-300.0,0.00021503,2]
[385809523,1758055832570,-300.0,0.00021503,2]
[385809525,1758055832579,-1200.0,0.00021503,2]
[385809527,1758055832588,-1200.0,0.00021504,2]
[385809529,1758055832597,-7855.9782019,0.00021506,2]
[385809531,1758055832606,-7855.9782019,0.00021506,2]
[385809532,1758055832615,-4495.9833343,0.00021506,2]
[385809534,1758055832625,-5121.176247,0.00021506,2]
[385809537,1758055832634,-33513.21938055,0.00021506,2]
[385809538,1758055832643,-168.0,0.00021666,2]
[385809540,1758055832652,-500.0,0.00021714,2]
[385809542,1758055832661,-385.54344833,0.00021714,2]
[385809544,1758055832670,-500.0,0.00021714,2]
[385809546,1758055832679,-154.35459208,0.00021714,2]
[385809548,1758055832689,-500.0,0.00021714,2]
[385809550,1758055832698,-231.92187479,0.00021714,2]
[385809552,1758055832707,-477.30494317,0.00021714,2]
[385809554,1758055832717,-500.0,0.00021714,2]
[385809556,1758055832726,-500.0,0.00021714,2]
[385809558,1758055832735,-500.0,0.00021714,2]
[385809560,1758055832745,-480.76187623,0.00021714,2]
[385809562,1758055832754,-8713.42871266,0.00021715,2]
[385809566,1758055832778,-418.22366975,0.00021715,2]
[385809637,1758055838285,-513.50970133,0.00021715,2]
[385809640,1758055838296,-1018.95959998,0.00021715,2]
[385809643,1758055838308,-2245.8841027,0.00021715,2]
[385809646,1758055838319,-996.71473488,0.00021715,2]
[385809652,1758055838348,-12711.07333162,0.00021715,2]
[385809655,1758055838358,-10705.43364983,0.00021715,2]
[385809658,1758055838367,-1000.0,0.00021817,2]
[385809660,1758055838376,-915.95363373,0.00021817,2]
[385809662,1758055838386,-4993.18998786,0.00021817,2]
[385809665,1758055838397,-644.02348662,0.00021817,2]
[385809667,1758055838407,-398.04150106,0.00021817,2]
[385809722,1758055840459,-3939.86113658,0.00021817,2]
[385809723,1758055840471,-300.0,0.00021817,2]
[385809724,1758055840483,-5475.10808737,0.00021817,2]
[385809726,1758055840492,-531.43424302,0.00021843,2]
[385809728,1758055840502,-217.86301978,0.00021843,2]
[385809730,1758055840511,-233.29513139,0.00021843,2]
[385809732,1758055840520,-160.0,0.00021843,2]
[385809733,1758055840529,-847.61663983,0.00021843,2]
[385809735,1758055840538,-160.0,0.00021843,2]
[385809737,1758055840549,-168.0,0.00021848,2]
[385809739,1758055840557,-153.31,0.00021907,3]
[385809741,1758055840566,-459.95,0.00021907,3]
[385809743,1758055840576,-500.0,0.00021916,2]
[385809745,1758055840585,-288.35077677,0.00021916,2]
[385809747,1758055840594,-500.0,0.00021916,2]
[385809749,1758055840603,-500.0,0.00021916,2]
[385809751,1758055840612,-581.12234634,0.00021916,2]
[385809753,1758055840621,-500.0,0.00021916,2]
[385809755,1758055840631,-500.0,0.00021916,2]
[385809757,1758055840640,-500.0,0.00021916,2]
[385809759,1758055840650,-500.0,0.00021916,2]
[385809761,1758055840659,-500.0,0.00021917,2]
[385809763,1758055840669,-480.0,0.00021917,2]
[385809765,1758055840678,-480.0,0.00021917,2]
[385809767,1758055840688,-480.0,0.00021917,2]
[385809769,1758055840697,-480.0,0.00021917,2]
[385809771,1758055840707,-480.0,0.00021917,2]
[385809773,1758055840717,-480.0,0.00021917,2]
[385809775,1758055840727,-480.0,0.00021917,2]
[385809777,1758055840736,-480.0,0.00021917,2]
[385809779,1758055840745,-480.0,0.00021917,2]